[Event "Live Chess"]
[Site "Chess.com"]
[Date "2024.06.02"]
[Round "-"]
[White "Ferrarifan27"]
[Black "GEMdzq"]
[Result "1-0"]
[WhiteElo "2151"]
[BlackElo "2274"]
[TimeControl "300"]
[EndTime "7:14:24 PDT"]
[Termination "Ferrarifan27 won by checkmate"]

1. e4 {[%clk 0:04:57.9]} 1... Nf6 {[%clk 0:04:58.7]} 2. e5 {[%clk 0:04:55.6]}
2... Nd5 {[%clk 0:04:58]} 3. d4 {[%clk 0:04:52.4]} 3... d6 {[%clk 0:04:57.5]} 4.
Nf3 {[%clk 0:04:51.1]} 4... g6 {[%clk 0:04:57.1]} 5. exd6 {[%clk 0:04:49.6]}
5... cxd6 {[%clk 0:04:55.6]} 6. c4 {[%clk 0:04:48.5]} 6... Nb6 {[%clk
0:04:53.8]} 7. Nc3 {[%clk 0:04:47.7]} 7... Bg7 {[%clk 0:04:53.3]} 8. Be3 {[%clk
0:04:45.5]} 8... O-O {[%clk 0:04:52.7]} 9. Be2 {[%clk 0:04:43.8]} 9... Nc6
{[%clk 0:04:50.9]} 10. O-O {[%clk 0:04:42.6]} 10... Bg4 {[%clk 0:04:50.5]} 11.
b3 {[%clk 0:04:38.7]} 11... e5 {[%clk 0:04:49]} 12. d5 {[%clk 0:04:35.5]} 12...
Ne7 {[%clk 0:04:45.6]} 13. Rc1 {[%clk 0:04:31.7]} 13... f5 {[%clk 0:04:42.4]}
14. Ng5 {[%clk 0:04:25]} 14... Bxe2 {[%clk 0:04:37.4]} 15. Qxe2 {[%clk
0:04:22.2]} 15... f4 {[%clk 0:04:26.7]} 16. Ne6 {[%clk 0:04:17.4]} 16... Qd7
{[%clk 0:04:25.2]} 17. Bxb6 {[%clk 0:04:14.5]} 17... axb6 {[%clk 0:04:24.2]} 18.
Nxf8 {[%clk 0:04:13.3]} 18... Rxf8 {[%clk 0:04:22.4]} 19. f3 {[%clk 0:04:08.9]}
19... Nf5 {[%clk 0:04:19.4]} 20. Ne4 {[%clk 0:04:01.4]} 20... Ne3 {[%clk
0:04:09.7]} 21. Rf2 {[%clk 0:04:00]} 21... h6 {[%clk 0:04:06.3]} 22. Rc3 {[%clk
0:03:55.5]} 22... Nf5 {[%clk 0:04:00.6]} 23. a4 {[%clk 0:03:48.4]} 23... g5
{[%clk 0:03:57.5]} 24. h3 {[%clk 0:03:45.5]} 24... Qe7 {[%clk 0:03:52.4]} 25. b4
{[%clk 0:03:33.5]} 25... Nd4 {[%clk 0:03:49.8]} 26. Qa2 {[%clk 0:03:27.9]} 26...
h5 {[%clk 0:03:48.2]} 27. c5 {[%clk 0:03:26.1]} 27... bxc5 {[%clk 0:03:46.7]}
28. bxc5 {[%clk 0:03:24.8]} 28... g4 {[%clk 0:03:43.5]} 29. cxd6 {[%clk
0:03:21.1]} 29... Qh4 {[%clk 0:03:37.8]} 30. d7 {[%clk 0:03:06.4]} 30... gxf3
{[%clk 0:03:21.3]} 31. Rc8 {[%clk 0:02:33.4]} 31... fxg2 {[%clk 0:03:04.9]} 32.
Rxf8+ {[%clk 0:02:29.5]} 32... Bxf8 {[%clk 0:03:03.2]} 33. d6+ {[%clk
0:02:26.2]} 33... Kg7 {[%clk 0:02:59.1]} 34. Rxg2+ {[%clk 0:02:23.4]} 34... Kh6
{[%clk 0:02:53.2]} 35. Qf2 {[%clk 0:01:43.1]} 35... Qd8 {[%clk 0:02:21.5]} 36.
Rg8 {[%clk 0:01:38.3]} 36... Qxd7 {[%clk 0:02:00.7]} 37. Qg2 {[%clk 0:01:37.2]}
37... Bg7 {[%clk 0:01:38.2]} 38. Qg5+ {[%clk 0:01:22.9]} 38... Kh7 {[%clk
0:01:35.4]} 39. Nf6+ {[%clk 0:01:20.4]} 39... Bxf6 {[%clk 0:01:33.3]} 40. Qg6#
{[%clk 0:01:19.7]} 1-0

[Event "Live Chess"]
[Site "Chess.com"]
[Date "2024.06.02"]
[Round "-"]
[White "missedJariChance"]
[Black "nigelst"]
[Result "0-1"]
[WhiteElo "1380"]
[BlackElo "1726"]
[TimeControl "300"]
[EndTime "7:15:12 PDT"]
[Termination "nigelst won by checkmate"]

1. b3 {[%clk 0:04:57.6]} 1... e5 {[%clk 0:04:58]} 2. Bb2 {[%clk 0:04:56.4]} 2...
Nc6 {[%clk 0:04:56.9]} 3. e3 {[%clk 0:04:54.2]} 3... d5 {[%clk 0:04:55.7]} 4.
Nf3 {[%clk 0:04:52]} 4... Bd6 {[%clk 0:04:53.2]} 5. c4 {[%clk 0:04:47.7]} 5...
dxc4 {[%clk 0:04:47.1]} 6. Bxc4 {[%clk 0:04:45.8]} 6... Nf6 {[%clk 0:04:41.9]}
7. O-O {[%clk 0:04:32.5]} 7... Bg4 {[%clk 0:04:39.5]} 8. Be2 {[%clk 0:04:25.9]}
8... O-O {[%clk 0:04:35]} 9. Nc3 {[%clk 0:04:13]} 9... Re8 {[%clk 0:04:32]} 10.
Nb5 {[%clk 0:04:07]} 10... a6 {[%clk 0:04:26.5]} 11. Nxd6 {[%clk 0:04:04.9]}
11... Qxd6 {[%clk 0:04:24.6]} 12. h3 {[%clk 0:03:48.6]} 12... Bh5 {[%clk
0:04:22.2]} 13. Nxe5 {[%clk 0:03:37.1]} 13... Bxe2 {[%clk 0:04:15.9]} 14. Qxe2
{[%clk 0:03:32.1]} 14... Nxe5 {[%clk 0:04:13.9]} 15. d4 {[%clk 0:03:25.7]} 15...
Nc6 {[%clk 0:04:09.4]} 16. Rfd1 {[%clk 0:03:21.3]} 16... Ne4 {[%clk 0:04:03.8]}
17. Qg4 {[%clk 0:03:13]} 17... Qg6 {[%clk 0:03:52.7]} 18. Qe2 {[%clk 0:03:03.4]}
18... Ng5 {[%clk 0:03:46]} 19. d5 {[%clk 0:03:00.7]} 19... Ne5 {[%clk
0:03:42.4]} 20. f4 {[%clk 0:02:48.9]} 20... Nxh3+ {[%clk 0:03:40.5]} 21. Kf1
{[%clk 0:02:45.3]} 21... Ng4 {[%clk 0:03:25.1]} 22. gxh3 {[%clk 0:02:41]} 22...
Nxe3+ {[%clk 0:03:22.3]} 23. Kf2 {[%clk 0:02:28.9]} 23... Qg2+ {[%clk
0:03:07.4]} 24. Ke1 {[%clk 0:02:22.6]} 24... Nc2+ {[%clk 0:03:00.2]} 25. Kd2
{[%clk 0:02:18.1]} 25... Rxe2+ {[%clk 0:02:57.7]} 26. Kc1 {[%clk 0:02:14.6]}
26... Ne3 {[%clk 0:02:51.3]} 27. Rg1 {[%clk 0:02:08.1]} 27... Qxg1# {[%clk
0:02:44.4]} 0-1

[Event "Live Chess"]
[Site "Chess.com"]
[Date "2024.06.02"]
[Round "-"]
[White "grillage"]
[Black "booktrunk"]
[Result "1-0"]
[WhiteElo "1874"]
[BlackElo "1495"]
[TimeControl "300"]
[EndTime "7:15:30 PDT"]
[Termination "grillage won by resignation"]

1. d4 {[%clk 0:04:56.4]} 1... e6 {[%clk 0:04:58.5]} 2. e4 {[%clk 0:04:54.1]}
2... h6 {[%clk 0:04:56.9]} 3. Nf3 {[%clk 0:04:48.2]} 3... b6 {[%clk 0:04:55.8]}
4. Bd3 {[%clk 0:04:46]} 4... Bb7 {[%clk 0:04:54.6]} 5. O-O {[%clk 0:04:44.5]}
5... Be7 {[%clk 0:04:46.9]} 6. Bf4 {[%clk 0:04:41.9]} 6... g5 {[%clk 0:04:19.7]}
7. Bg3 {[%clk 0:04:39.4]} 7... Nf6 {[%clk 0:04:10.8]} 8. Re1 {[%clk 0:04:31.5]}
8... Nh5 {[%clk 0:03:55.6]} 9. Be5 {[%clk 0:04:13.6]} 9... f6 {[%clk 0:03:51.7]}
10. Bg3 {[%clk 0:03:56.4]} 10... Nxg3 {[%clk 0:03:48.3]} 11. hxg3 {[%clk
0:03:53.4]} 11... h5 {[%clk 0:03:44.3]} 12. c4 {[%clk 0:03:37.6]} 12... c6
{[%clk 0:03:40.9]} 13. d5 {[%clk 0:03:31.3]} 13... cxd5 {[%clk 0:03:38.7]} 14.
exd5 {[%clk 0:03:28.7]} 14... g4 {[%clk 0:03:37.5]} 15. Bg6+ {[%clk 0:03:24.3]}
15... Kf8 {[%clk 0:03:35.4]} 16. Nh4 {[%clk 0:03:21.8]} 16... Rg8 {[%clk
0:03:29.3]} 17. dxe6 {[%clk 0:03:17.6]} 17... dxe6 {[%clk 0:03:25.5]} 18. Qe2
{[%clk 0:03:10.6]} 18... e5 {[%clk 0:03:22.8]} 19. Nc3 {[%clk 0:03:09.7]} 19...
Kg7 {[%clk 0:03:16.5]} 20. Rad1 {[%clk 0:03:06.8]} 20... Qc8 {[%clk 0:03:09.5]}
21. Bxh5 {[%clk 0:03:02.9]} 21... Qc6 {[%clk 0:03:06.6]} 22. Bxg4 {[%clk
0:02:53.3]} 22... Rh8 {[%clk 0:03:03.7]} 23. Bf3 {[%clk 0:02:51.9]} 23... Qc7
{[%clk 0:03:00.2]} 24. Nf5+ {[%clk 0:02:50.5]} 24... Kf7 {[%clk 0:02:57.8]} 25.
Bxb7 {[%clk 0:02:41.8]} 25... Qxb7 {[%clk 0:02:56.3]} 26. Nd5 {[%clk 0:02:31.8]}
26... Re8 {[%clk 0:02:52.7]} 27. Qh5+ {[%clk 0:02:27.3]} 27... Ke6 {[%clk
0:02:50.8]} 28. Ng7+ {[%clk 0:02:24.2]} 1-0

[Event "Live Chess"]
[Site "Chess.com"]
[Date "2024.06.02"]
[Round "-"]
[White "DJ_Lambton"]
[Black "Inglaterra"]
[Result "1-0"]
[WhiteElo "1818"]
[BlackElo "2046"]
[TimeControl "300"]
[EndTime "7:15:35 PDT"]
[Termination "DJ_Lambton won by resignation"]

1. c4 {[%clk 0:04:56.6]} 1... e6 {[%clk 0:04:57.3]} 2. g3 {[%clk 0:04:55.9]}
2... Nf6 {[%clk 0:04:54.3]} 3. Nf3 {[%clk 0:04:55.3]} 3... d5 {[%clk 0:04:53.9]}
4. Bg2 {[%clk 0:04:54.1]} 4... Be7 {[%clk 0:04:53.4]} 5. O-O {[%clk 0:04:52.8]}
5... O-O {[%clk 0:04:53]} 6. b3 {[%clk 0:04:52.3]} 6... c5 {[%clk 0:04:51.5]} 7.
Bb2 {[%clk 0:04:51.8]} 7... Nc6 {[%clk 0:04:43.2]} 8. d4 {[%clk 0:04:50.2]} 8...
dxc4 {[%clk 0:04:31.2]} 9. bxc4 {[%clk 0:04:45.1]} 9... Bd7 {[%clk 0:04:30.5]}
10. d5 {[%clk 0:04:41.5]} 10... exd5 {[%clk 0:03:55.3]} 11. cxd5 {[%clk
0:04:41.4]} 11... Nxd5 {[%clk 0:03:49.2]} 12. Qxd5 {[%clk 0:04:35.3]} 12... Be6
{[%clk 0:03:48.4]} 13. Qxd8 {[%clk 0:04:33.9]} 13... Rfxd8 {[%clk 0:03:45.8]}
14. Nc3 {[%clk 0:04:31.9]} 14... Rac8 {[%clk 0:03:26.5]} 15. Rad1 {[%clk
0:04:30]} 15... b6 {[%clk 0:03:22.6]} 16. Rxd8+ {[%clk 0:04:24.3]} 16... Rxd8
{[%clk 0:03:22.5]} 17. Rd1 {[%clk 0:04:23.7]} 17... Rc8 {[%clk 0:03:17.2]} 18.
a3 {[%clk 0:04:20.1]} 18... Na5 {[%clk 0:03:14.6]} 19. Ne5 {[%clk 0:04:12.9]}
19... f6 {[%clk 0:03:09.6]} 20. Nd3 {[%clk 0:04:05.5]} 20... Nc4 {[%clk
0:02:57.5]} 21. Bc1 {[%clk 0:03:56.2]} 21... Kf8 {[%clk 0:02:45.1]} 22. Nf4
{[%clk 0:03:55.1]} 22... Bf5 {[%clk 0:02:33.6]} 23. e4 {[%clk 0:03:51.8]} 1-0

[Event "Live Chess"]
[Site "Chess.com"]
[Date "2024.06.02"]
[Round "-"]
[White "wadsy27"]
[Black "resipsa6"]
[Result "1-0"]
[WhiteElo "2594"]
[BlackElo "2026"]
[TimeControl "300"]
[EndTime "7:15:36 PDT"]
[Termination "wadsy27 won by resignation"]

1. d4 {[%clk 0:04:57.5]} 1... Nf6 {[%clk 0:04:58.9]} 2. c4 {[%clk 0:04:57.4]}
2... g6 {[%clk 0:04:58.1]} 3. Nc3 {[%clk 0:04:56.3]} 3... d5 {[%clk 0:04:56.4]}
4. cxd5 {[%clk 0:04:54.3]} 4... Nxd5 {[%clk 0:04:54.1]} 5. e4 {[%clk 0:04:53.9]}
5... Nxc3 {[%clk 0:04:53.1]} 6. bxc3 {[%clk 0:04:53.8]} 6... Bg7 {[%clk
0:04:50.3]} 7. Nf3 {[%clk 0:04:53.5]} 7... c5 {[%clk 0:04:48.5]} 8. Be2 {[%clk
0:04:52.9]} 8... O-O {[%clk 0:04:47]} 9. O-O {[%clk 0:04:51.5]} 9... Nc6 {[%clk
0:04:44.1]} 10. Be3 {[%clk 0:04:50.7]} 10... cxd4 {[%clk 0:04:39.6]} 11. cxd4
{[%clk 0:04:49]} 11... e6 {[%clk 0:04:36.7]} 12. Rb1 {[%clk 0:04:46.5]} 12... b6
{[%clk 0:04:34.2]} 13. d5 {[%clk 0:04:42.7]} 13... exd5 {[%clk 0:04:32.2]} 14.
exd5 {[%clk 0:04:42.6]} 14... Ne5 {[%clk 0:04:27.2]} 15. Nxe5 {[%clk 0:04:40]}
15... Bxe5 {[%clk 0:04:27.1]} 16. Bf3 {[%clk 0:04:36]} 16... Bg7 {[%clk
0:04:24.2]} 17. d6 {[%clk 0:04:31.3]} 17... Ba6 {[%clk 0:04:21.1]} 18. Bxa8
{[%clk 0:04:26.4]} 18... Bxf1 {[%clk 0:04:19.9]} 19. Qxf1 {[%clk 0:04:25]} 19...
Qxa8 {[%clk 0:04:18]} 20. Rd1 {[%clk 0:04:21.5]} 20... Rd8 {[%clk 0:04:16.9]}
21. Qb5 {[%clk 0:04:09.1]} 21... Qb7 {[%clk 0:03:58.7]} 22. d7 {[%clk 0:04:06]}
22... Bf8 {[%clk 0:03:52.6]} 23. Bg5 {[%clk 0:04:01]} 23... a6 {[%clk
0:03:41.4]} 24. Bxd8 {[%clk 0:03:54.8]} 24... axb5 {[%clk 0:03:37]} 25. Bf6
{[%clk 0:03:53.9]} 1-0

[Event "Live Chess"]
[Site "Chess.com"]
[Date "2024.06.02"]
[Round "-"]
[White "KeithArkell"]
[Black "Plimsol"]
[Result "1/2-1/2"]
[WhiteElo "2423"]
[BlackElo "2358"]
[TimeControl "300"]
[EndTime "7:15:41 PDT"]
[Termination "Game drawn by agreement"]

1. d4 {[%clk 0:04:56.5]} 1... e6 {[%clk 0:04:59]} 2. Nf3 {[%clk 0:04:55.5]} 2...
Nf6 {[%clk 0:04:58.4]} 3. c4 {[%clk 0:04:54.7]} 3... b6 {[%clk 0:04:57.6]} 4. g3
{[%clk 0:04:53.2]} 4... Ba6 {[%clk 0:04:56.4]} 5. b3 {[%clk 0:04:52.4]} 5... Bb7
{[%clk 0:04:55.1]} 6. Bg2 {[%clk 0:04:51.9]} 6... Bb4+ {[%clk 0:04:54.4]} 7. Bd2
{[%clk 0:04:51.4]} 7... a5 {[%clk 0:04:53.6]} 8. O-O {[%clk 0:04:50.1]} 8... O-O
{[%clk 0:04:53.2]} 9. Nc3 {[%clk 0:04:47.5]} 9... d6 {[%clk 0:04:50.4]} 10. a3
{[%clk 0:04:45.3]} 10... Bxc3 {[%clk 0:04:46.7]} 11. Bxc3 {[%clk 0:04:44.7]}
11... Nbd7 {[%clk 0:04:46.3]} 12. Qc2 {[%clk 0:04:43.8]} 12... Be4 {[%clk
0:04:45.2]} 13. Qb2 {[%clk 0:04:42.6]} 13... Qb8 {[%clk 0:04:44.4]} 14. b4
{[%clk 0:04:41.6]} 14... axb4 {[%clk 0:04:42.2]} 15. axb4 {[%clk 0:04:41]} 15...
b5 {[%clk 0:04:41.7]} 16. Rxa8 {[%clk 0:04:31.3]} 16... Qxa8 {[%clk 0:04:36.6]}
17. Ra1 {[%clk 0:04:29.7]} 17... Qb7 {[%clk 0:04:35.8]} 18. cxb5 {[%clk
0:04:24.5]} 18... Nb6 {[%clk 0:04:28.4]} 19. Ne1 {[%clk 0:04:20.4]} 19... Bxg2
{[%clk 0:04:21.2]} 20. Nxg2 {[%clk 0:04:20.3]} 20... Nc4 {[%clk 0:04:20.1]} 21.
Qc2 {[%clk 0:04:16.6]} 21... Qxb5 {[%clk 0:04:17.7]} 22. Qd3 {[%clk 0:04:14.1]}
22... d5 {[%clk 0:04:14.2]} 23. Ne3 {[%clk 0:04:11.5]} 23... Nd6 {[%clk
0:04:03.4]} 24. Qxb5 {[%clk 0:04:08.4]} 24... Nxb5 {[%clk 0:04:02.6]} 25. Bb2
{[%clk 0:04:07.7]} 25... Ne4 {[%clk 0:03:55.9]} 26. f3 {[%clk 0:04:05.6]} 26...
Ned6 {[%clk 0:03:54.6]} 27. Ra6 {[%clk 0:04:01.7]} 27... Rb8 {[%clk 0:03:49.7]}
28. Kf2 {[%clk 0:04:00]} 28... Kf8 {[%clk 0:03:48.6]} 29. Ke1 {[%clk 0:03:52.7]}
29... Ke7 {[%clk 0:03:47.8]} 30. Kd2 {[%clk 0:03:51.9]} 30... Kd7 {[%clk
0:03:47.4]} 31. Kd3 {[%clk 0:03:51]} 31... Kc8 {[%clk 0:03:41.1]} 32. g4 {[%clk
0:03:50.1]} 32... Kb7 {[%clk 0:03:39.4]} 33. Ra1 {[%clk 0:03:49.1]} 33... Ra8
{[%clk 0:03:29.2]} 34. Rxa8 {[%clk 0:03:47.8]} 34... Kxa8 {[%clk 0:03:28.7]} 35.
h4 {[%clk 0:03:43]} 35... Kb7 {[%clk 0:03:24.9]} 36. Bc1 {[%clk 0:03:41.8]}
36... g6 {[%clk 0:03:22.9]} 37. Ng2 {[%clk 0:03:28.3]} 37... Nc4 {[%clk
0:03:20.7]} 38. e4 {[%clk 0:03:25.8]} 38... Kc6 {[%clk 0:03:17.5]} 39. h5 {[%clk
0:03:21.9]} 39... Nbd6 {[%clk 0:03:15.8]} 40. Nf4 {[%clk 0:03:18.1]} 40... Nb6
{[%clk 0:03:08.5]} 41. Nh3 {[%clk 0:03:13.2]} 41... gxh5 {[%clk 0:02:49.4]} 42.
gxh5 {[%clk 0:03:11.2]} 42... f6 {[%clk 0:02:48.8]} 43. e5 {[%clk 0:03:03.5]}
43... fxe5 {[%clk 0:02:37.4]} 44. dxe5 {[%clk 0:03:02.5]} 44... Nf7 {[%clk
0:02:36.6]} 45. Kd4 {[%clk 0:02:58.4]} 45... Nd7 {[%clk 0:02:27.4]} 46. f4
{[%clk 0:02:55.3]} 46... Nh6 {[%clk 0:01:59.8]} 47. Ng5 {[%clk 0:02:51.8]} 47...
Nf5+ {[%clk 0:01:58.8]} 48. Kd3 {[%clk 0:02:51.3]} 48... Nf8 {[%clk 0:01:58]}
49. b5+ {[%clk 0:02:45.8]} 49... Kxb5 {[%clk 0:01:55.7]} 50. Ba3 {[%clk
0:02:45.1]} 50... c5 {[%clk 0:01:55.1]} 51. Nf7 {[%clk 0:02:36.8]} 51... h6
{[%clk 0:01:44.8]} 52. Nd6+ {[%clk 0:02:20]} 52... Kc6 {[%clk 0:01:42.1]} 53.
Nf7 {[%clk 0:01:56.1]} 53... Ng3 {[%clk 0:00:59.3]} 54. Nd8+ {[%clk 0:01:54.4]}
54... Kd7 {[%clk 0:00:56.6]} 55. Bxc5 {[%clk 0:01:50.5]} 55... Kxd8 {[%clk
0:00:48.2]} 56. Bxf8 {[%clk 0:01:49]} 56... Nxh5 {[%clk 0:00:47.4]} 57. Bxh6
{[%clk 0:01:48.2]} 57... Ke8 {[%clk 0:00:45.3]} 58. f5 {[%clk 0:01:44.6]} 58...
exf5 {[%clk 0:00:42.7]} 59. Kd4 {[%clk 0:01:44.1]} 1/2-1/2

[Event "Live Chess"]
[Site "Chess.com"]
[Date "2024.06.02"]
[Round "-"]
[White "Queensandpawns"]
[Black "DoctorMantisTobogganMD"]
[Result "0-1"]
[WhiteElo "2287"]
[BlackElo "2230"]
[TimeControl "300"]
[EndTime "7:15:45 PDT"]
[Termination "DoctorMantisTobogganMD won by resignation"]

1. e4 {[%clk 0:04:58.8]} 1... c6 {[%clk 0:04:58.1]} 2. d4 {[%clk 0:04:58]} 2...
g6 {[%clk 0:04:57]} 3. Nc3 {[%clk 0:04:55.1]} 3... Bg7 {[%clk 0:04:55.8]} 4. Nf3
{[%clk 0:04:54.4]} 4... d5 {[%clk 0:04:55.1]} 5. e5 {[%clk 0:04:53.8]} 5... Bg4
{[%clk 0:04:53.2]} 6. Be2 {[%clk 0:04:51.9]} 6... e6 {[%clk 0:04:51.9]} 7. Be3
{[%clk 0:04:48.7]} 7... Nd7 {[%clk 0:04:50.1]} 8. h3 {[%clk 0:04:45]} 8... Bxf3
{[%clk 0:04:49.2]} 9. Bxf3 {[%clk 0:04:44.9]} 9... a6 {[%clk 0:04:47]} 10. h4
{[%clk 0:04:39.9]} 10... h5 {[%clk 0:04:45.7]} 11. Qe2 {[%clk 0:04:37.3]} 11...
c5 {[%clk 0:04:43.8]} 12. O-O-O {[%clk 0:04:36.8]} 12... cxd4 {[%clk 0:04:42.6]}
13. Bxd4 {[%clk 0:04:36.3]} 13... Ne7 {[%clk 0:04:41.7]} 14. g4 {[%clk
0:04:34.4]} 14... hxg4 {[%clk 0:04:37.8]} 15. Bxg4 {[%clk 0:04:34.3]} 15... Nf5
{[%clk 0:04:28.9]} 16. Bxf5 {[%clk 0:04:32.5]} 16... gxf5 {[%clk 0:04:28.3]} 17.
Nxd5 {[%clk 0:04:28.2]} 17... exd5 {[%clk 0:04:24.4]} 18. e6 {[%clk 0:04:28.1]}
18... fxe6 {[%clk 0:04:22.4]} 19. Bxg7 {[%clk 0:04:23.9]} 19... Kf7 {[%clk
0:04:08.2]} 20. Bxh8 {[%clk 0:04:20.8]} 20... Qxh8 {[%clk 0:04:08.1]} 21. h5
{[%clk 0:04:19.6]} 21... Qh6+ {[%clk 0:04:06.8]} 22. Qe3 {[%clk 0:04:18]} 22...
Qxe3+ {[%clk 0:04:04.1]} 23. fxe3 {[%clk 0:04:17.9]} 23... Rh8 {[%clk
0:04:03.3]} 24. Rdg1 {[%clk 0:04:16.3]} 24... Rh6 {[%clk 0:03:59.6]} 25. Rh4
{[%clk 0:04:01.2]} 25... Nf6 {[%clk 0:03:58]} 26. Rgh1 {[%clk 0:03:59.7]} 26...
Ng4 {[%clk 0:03:57.3]} 27. Kd2 {[%clk 0:03:58.3]} 27... Kf6 {[%clk 0:03:55.7]}
28. Kc3 {[%clk 0:03:54.8]} 28... Nxe3 {[%clk 0:03:52.7]} 29. R1h2 {[%clk
0:03:43.3]} 29... e5 {[%clk 0:03:46.7]} 30. Kb4 {[%clk 0:03:33.8]} 30... Ng4
{[%clk 0:03:38]} 31. Rh1 {[%clk 0:03:27.9]} 31... e4 {[%clk 0:03:33.3]} 32. Kc5
{[%clk 0:03:24.7]} 32... Ke5 {[%clk 0:03:32.4]} 33. Kb4 {[%clk 0:03:06.1]} 33...
d4 {[%clk 0:03:29.5]} 34. Kc4 {[%clk 0:02:46.9]} 34... b5+ {[%clk 0:03:24.1]}
35. Kb4 {[%clk 0:02:41.6]} 35... e3 {[%clk 0:03:21.2]} 36. c4 {[%clk 0:02:38.2]}
36... bxc4 {[%clk 0:03:13]} 37. Kxc4 {[%clk 0:02:38.1]} 37... Ke4 {[%clk
0:03:11.8]} 38. Kb3 {[%clk 0:02:32.3]} 38... d3 {[%clk 0:03:09.7]} 39. Kc3
{[%clk 0:02:28.9]} 39... Rc6+ {[%clk 0:03:02.2]} 40. Kb3 {[%clk 0:02:25.6]}
40... d2 {[%clk 0:03:00.6]} 41. h6 {[%clk 0:02:25.2]} 41... Rxh6 {[%clk
0:02:56.5]} 42. Rxh6 {[%clk 0:02:23.3]} 42... Nxh6 {[%clk 0:02:55.4]} 43. Kc2
{[%clk 0:02:23.2]} 43... Ng4 {[%clk 0:02:51.9]} 44. Rh4 {[%clk 0:02:14.7]} 44...
Kf3 {[%clk 0:02:47.7]} 45. Rh5 {[%clk 0:02:13]} 45... Ke2 {[%clk 0:02:37.8]} 0-1

[Event "Live Chess"]
[Site "Chess.com"]
[Date "2024.06.02"]
[Round "-"]
[White "PavelChernomordik"]
[Black "Crowded_House"]
[Result "1/2-1/2"]
[WhiteElo "2495"]
[BlackElo "1645"]
[TimeControl "300"]
[EndTime "7:15:57 PDT"]
[Termination "Game drawn by repetition"]

1. e4 {[%clk 0:04:57.1]} 1... e6 {[%clk 0:04:59.3]} 2. Nc3 {[%clk 0:04:55.7]}
2... d5 {[%clk 0:04:58.8]} 3. d4 {[%clk 0:04:54.5]} 3... dxe4 {[%clk 0:04:55]}
4. Nxe4 {[%clk 0:04:53.1]} 4... Bd7 {[%clk 0:04:54.8]} 5. Nf3 {[%clk 0:04:51.7]}
5... Bc6 {[%clk 0:04:54.5]} 6. Bd3 {[%clk 0:04:50.7]} 6... Nd7 {[%clk 0:04:54]}
7. Qe2 {[%clk 0:04:49.6]} 7... Ngf6 {[%clk 0:04:53.7]} 8. Neg5 {[%clk
0:04:39.9]} 8... h6 {[%clk 0:04:51.3]} 9. Nxe6 {[%clk 0:04:30.3]} 9... fxe6
{[%clk 0:04:47.3]} 10. Bg6+ {[%clk 0:04:28.7]} 10... Ke7 {[%clk 0:04:42.6]} 11.
Nh4 {[%clk 0:04:23]} 11... Nd5 {[%clk 0:04:23.8]} 12. Bf5 {[%clk 0:04:08.1]}
12... Qe8 {[%clk 0:03:57.5]} 13. Bxe6 {[%clk 0:03:39.5]} 13... Kd8 {[%clk
0:03:55.8]} 14. O-O {[%clk 0:03:33.8]} 14... Be7 {[%clk 0:03:45]} 15. Nf5 {[%clk
0:03:27.1]} 15... Bf6 {[%clk 0:03:38.1]} 16. c4 {[%clk 0:03:23.1]} 16... Ne7
{[%clk 0:03:32.8]} 17. Nxe7 {[%clk 0:03:10.3]} 17... Qxe7 {[%clk 0:03:31.6]} 18.
d5 {[%clk 0:03:08.9]} 18... Re8 {[%clk 0:03:20.7]} 19. dxc6 {[%clk 0:02:52.4]}
19... bxc6 {[%clk 0:03:13.3]} 20. Rd1 {[%clk 0:02:50.2]} 20... Qxe6 {[%clk
0:03:09.5]} 21. Qd2 {[%clk 0:02:40.7]} 21... Kc8 {[%clk 0:02:57.7]} 22. Qa5
{[%clk 0:02:38.3]} 22... Nb6 {[%clk 0:02:46.6]} 23. Bf4 {[%clk 0:02:18.7]} 23...
Bg5 {[%clk 0:02:29.9]} 24. Re1 {[%clk 0:01:56.1]} 24... Qd7 {[%clk 0:02:27.8]}
25. Rxe8+ {[%clk 0:01:51]} 25... Qxe8 {[%clk 0:02:27]} 26. Bxg5 {[%clk
0:01:42.1]} 26... hxg5 {[%clk 0:02:26]} 27. Qxg5 {[%clk 0:01:33.6]} 27... Qf7
{[%clk 0:02:10]} 28. b3 {[%clk 0:01:31.6]} 28... Kb7 {[%clk 0:02:07.5]} 29. Re1
{[%clk 0:01:30.1]} 29... Re8 {[%clk 0:02:05.2]} 30. Rxe8 {[%clk 0:01:26.6]}
30... Qxe8 {[%clk 0:02:04.4]} 31. g3 {[%clk 0:01:24.3]} 31... Qe1+ {[%clk
0:02:00.9]} 32. Kg2 {[%clk 0:01:23.1]} 32... Qe4+ {[%clk 0:01:59.9]} 33. Kh3
{[%clk 0:01:20.9]} 33... Qd4 {[%clk 0:01:53.3]} 34. Kg2 {[%clk 0:01:16.3]} 34...
Qe4+ {[%clk 0:01:51.4]} 35. Kg1 {[%clk 0:01:14.2]} 35... Qe1+ {[%clk 0:01:49.4]}
36. Kg2 {[%clk 0:01:13.2]} 36... Qe4+ {[%clk 0:01:49]} 1/2-1/2

[Event "Live Chess"]
[Site "Chess.com"]
[Date "2024.06.02"]
[Round "-"]
[White "gmnorfolk"]
[Black "Anareza_Firouzja"]
[Result "1-0"]
[WhiteElo "2156"]
[BlackElo "1888"]
[TimeControl "300"]
[EndTime "7:16:06 PDT"]
[Termination "gmnorfolk won by resignation"]

1. d4 {[%clk 0:04:54.7]} 1... Nf6 {[%clk 0:04:58.1]} 2. Nf3 {[%clk 0:04:52.3]}
2... e6 {[%clk 0:04:57.2]} 3. c3 {[%clk 0:04:50.9]} 3... d5 {[%clk 0:04:56.6]}
4. Bg5 {[%clk 0:04:49.6]} 4... c5 {[%clk 0:04:54.4]} 5. Nbd2 {[%clk 0:04:45.3]}
5... Nc6 {[%clk 0:04:52.6]} 6. e3 {[%clk 0:04:44.6]} 6... cxd4 {[%clk
0:04:50.3]} 7. exd4 {[%clk 0:04:43.3]} 7... Be7 {[%clk 0:04:49.7]} 8. Bd3 {[%clk
0:04:41.5]} 8... h6 {[%clk 0:04:49.1]} 9. Bh4 {[%clk 0:04:39.3]} 9... Bd7 {[%clk
0:04:44.9]} 10. O-O {[%clk 0:04:37.5]} 10... O-O {[%clk 0:04:43.2]} 11. Qe2
{[%clk 0:04:33.8]} 11... Ng4 {[%clk 0:04:38.5]} 12. Bg3 {[%clk 0:04:29.8]} 12...
Nf6 {[%clk 0:04:18.8]} 13. Ne5 {[%clk 0:04:22.9]} 13... g6 {[%clk 0:04:01.2]}
14. Qe3 {[%clk 0:03:59.3]} 14... Kh7 {[%clk 0:03:50.2]} 15. Bf4 {[%clk
0:03:58.1]} 15... h5 {[%clk 0:03:46.4]} 16. Ndf3 {[%clk 0:03:51.3]} 16... Ng4
{[%clk 0:03:37.6]} 17. Nxg4 {[%clk 0:03:43.3]} 17... hxg4 {[%clk 0:03:37.5]} 18.
Ng5+ {[%clk 0:03:40.3]} 18... Kg7 {[%clk 0:03:32.3]} 19. f3 {[%clk 0:03:36.9]}
19... gxf3 {[%clk 0:03:30.6]} 20. Rxf3 {[%clk 0:03:29.1]} 20... Bf6 {[%clk
0:03:11.4]} 21. Raf1 {[%clk 0:03:23.4]} 21... Qe7 {[%clk 0:03:00.4]} 22. h4
{[%clk 0:03:01]} 22... e5 {[%clk 0:02:52]} 23. dxe5 {[%clk 0:02:59]} 23... Bxe5
{[%clk 0:02:47.4]} 24. Bxe5+ {[%clk 0:02:54.3]} 24... Qxe5 {[%clk 0:02:45.6]}
25. Rxf7+ {[%clk 0:02:51.9]} 25... Rxf7 {[%clk 0:02:40.7]} 26. Rxf7+ {[%clk
0:02:50]} 26... Kg8 {[%clk 0:02:40.6]} 27. Qf2 {[%clk 0:02:25.2]} 27... Bg4
{[%clk 0:02:11]} 28. Bxg6 {[%clk 0:02:14.5]} 28... d4 {[%clk 0:02:02.2]} 29.
Bh7+ {[%clk 0:02:08.9]} 29... Kh8 {[%clk 0:01:59.3]} 30. Rf8+ {[%clk 0:02:06.6]}
30... Kg7 {[%clk 0:01:55.1]} 1-0